bitfinex-derivatives/quotes_BTCF0:USTF0_20241003
["timestamp","ask_amount","ask_price","bid_price","bid_amount"]
[1727964493939,0.3608,60802.0,60799.0,0.082249]
[1727964494241,0.0586,60806.0,60788.0,0.082265]
[1727964494242,0.082242,60805.0,60800.0,0.001]
[1727964494541,0.084247,60801.0,60800.0,0.001]
[1727964494731,0.002,60801.0,60795.0,0.082255]
[1727964494937,0.082243,60805.0,60795.0,0.082255]
[1727964495232,0.1143,60819.0,60800.0,0.8008]
[1727964495438,0.0549,60820.0,60819.0,0.082223]
[1727964495736,0.3608,60823.0,60807.0,0.44]
[1727964495935,0.3608,60830.0,60820.0,0.082222]
[1727964495936,0.082209,60830.0,60820.0,0.082222]
[1727964496133,0.442994,60841.0,60820.0,0.49324]
[1727964496341,0.442994,60841.0,60819.0,0.44]
[1727964496342,0.082199,60837.0,60824.0,0.082216]
[1727964496543,0.082198,60838.0,60827.0,0.082211]
[1727964496731,0.082198,60838.0,60828.0,0.08221]
[1727964496936,0.082198,60838.0,60829.0,0.082209]
[1727964497250,0.8008,60830.0,60820.0,0.001]
[1727964497549,0.883,60836.0,60820.0,0.001]
[1727964497741,0.082209,60830.0,60817.0,0.082225]
[1727964497944,0.055,60829.0,60819.0,0.082223]
[1727964498138,0.055,60829.0,60816.0,0.00246635]
[1727964498646,0.082214,60826.0,60816.0,0.00246635]
[1727964498951,0.082213,60827.0,60819.0,0.082222]
[1727964499248,0.082212,60828.0,60818.0,0.082223]
[1727964499440,0.44,60823.0,60820.0,0.001]
[1727964499640,0.495,60829.0,60820.0,0.001]
[1727964499836,0.082216,60824.0,60820.0,0.001]
[1727964500051,0.082216,60824.0,60819.0,0.001]
[1727964500545,0.082235,60811.0,60799.0,0.3608]
[1727964500851,0.082235,60811.0,60789.0,0.0082]
[1727964500852,0.3608,60800.0,60784.0,0.8008]
[1727964501034,0.3608,60806.0,60789.0,0.44]
[1727964501343,0.3608,60806.0,60799.0,0.082249]
[1727964501543,0.3608,60806.0,60795.0,0.44]
[1727964501741,0.3608,60806.0,60799.0,0.082249]
[1727964502142,0.082246,60802.0,60792.0,0.082259]
[1727964502335,0.8008,60806.0,60784.0,0.3608]
[1727964502546,0.44,60795.0,60784.0,0.3608]
[1727964502844,0.082249,60800.0,60799.0,0.014]
[1727964503045,0.082249,60800.0,60787.0,0.082266]
[1727964503349,1.5,60799.0,60792.0,0.005]
[1727964503552,0.082242,60805.0,60792.0,0.005]
[1727964503846,0.3608,60806.0,60785.0,0.44]
[1727964504038,0.094249,60800.0,60799.0,0.001]
[1727964504237,0.082253,60797.0,60784.0,0.443069]
[1727964504435,0.082265,60788.0,60784.0,0.3608]
[1727964504647,0.452,60800.0,60784.0,0.3608]
[1727964504949,0.452,60800.0,60788.0,0.082265]
[1727964504950,0.082254,60796.0,60788.0,0.082265]
[1727964505336,0.012,60800.0,60788.0,0.082265]
[1727964505647,1.58320401,60804.0,60775.0,0.36326808]
[1727964505648,0.8008,60794.0,60775.0,0.36326808]
[1727964505956,0.44,60789.0,60775.0,0.36326808]
[1727964506552,0.082265,60788.0,60777.0,0.082279]
[1727964506745,0.44,60789.0,60775.0,0.36626808]
[1727964506950,0.522264,60789.0,60779.0,0.082276]
[1727964507144,0.522264,60789.0,60775.0,0.36626808]
[1727964507348,0.522264,60789.0,60779.0,0.082276]
[1727964507349,0.441,60789.0,60779.0,0.082276]
[1727964507541,0.082265,60788.0,60779.0,0.082276]
[1727964507746,0.441,60789.0,60775.0,0.44555008]
[1727964508051,0.082268,60787.0,60775.0,0.36326808]
[1727964508253,0.082268,60786.0,60775.0,0.36326808]
[1727964508450,0.082268,60786.0,60777.0,0.08228]
[1727964508639,0.082268,60786.0,60775.0,0.36326808]
[1727964508640,0.082268,60786.0,60779.0,0.082277]
[1727964508842,0.445,60789.0,60780.0,0.082276]
[1727964509044,0.082265,60788.0,60780.0,0.082276]
[1727964509253,0.3608,60787.0,60780.0,0.082276]
[1727964509547,0.001,60786.0,60780.0,0.082276]
[1727964509949,0.001,60786.0,60775.0,0.00246808]
[1727964510146,0.082263,60790.0,60775.0,0.36326808]
[1727964510453,0.082263,60790.0,60781.0,0.082274]
[1727964510454,0.006,60788.0,60781.0,0.082274]
[1727964510652,0.082268,60786.0,60785.0,0.04816371]
[1727964510952,0.082269,60785.0,60784.0,0.04816371]
[1727964511254,0.082269,60785.0,60783.0,0.048446]
[1727964511255,0.3608,60785.0,60783.0,0.048446]
[1727964511443,0.3608,60785.0,60773.0,0.082284]
[1727964511444,0.082291,60769.0,60763.0,0.08027285]
[1727964511645,0.8008,60769.0,60758.0,0.08027285]
[1727964511950,0.44,60759.0,60753.0,0.44107285]
[1727964512150,0.44,60759.0,60753.0,0.3608]
[1727964512345,0.44,60754.0,60753.0,0.3608]
[1727964512856,0.082302,60761.0,60753.0,0.3608]
[1727964513039,0.44,60765.0,60754.0,0.08231]
[1727964513040,0.522297,60765.0,60754.0,0.08231]
[1727964513241,0.082302,60761.0,60753.0,0.3608]
[1727964513444,0.082307,60757.0,60753.0,0.3608]
[1727964513651,0.522311,60754.0,60753.0,0.3608]
[1727964514657,0.082319,60749.0,60747.0,0.00246943]
[1727964514852,0.44,60748.0,60747.0,0.00246943]
[1727964515547,0.522319,60748.0,60747.0,0.00246943]
[1727964516055,0.883119,60748.0,60734.0,0.082337]
[1727964516256,0.8008,60740.0,60728.0,0.08027285]
[1727964516552,0.522346,60729.0,60719.0,0.082358]
[1727964516755,0.44,60721.0,60718.0,0.00247058]
[1727964517061,0.44,60721.0,60707.0,0.3608]
[1727964517062,0.082361,60718.0,60707.0,0.3608]
[1727964517262,0.44,60721.0,60704.0,0.08027285]
[1727964517263,0.082368,60712.0,60704.0,0.08027285]
[1727964517551,0.44,60713.0,60703.0,0.3608]
[1727964517757,0.522367,60713.0,60700.0,0.082384]
[1727964517945,0.522367,60713.0,60697.0,0.3608]
[1727964517946,0.44,60707.0,60697.0,0.3608]
[1727964518145,0.44,60702.0,60697.0,0.3608]
[1727964518343,0.44,60702.0,60692.0,0.36327122]
[1727964518344,0.3608,60699.0,60692.0,0.00247122]
[1727964518548,0.44,60693.0,60692.0,0.00247122]
[1727964518742,0.01424214,60700.0,60692.0,0.00247122]
[1727964518943,0.00247223,60706.0,60705.0,0.082377]
[1727964519160,0.00247223,60706.0,60705.0,1.537377]
[1727964519348,0.00247223,60706.0,60705.0,0.3608]
[1727964519864,0.3608,60719.0,60710.0,0.08237]
[1727964520356,0.3608,60719.0,60712.0,0.082367]
[1727964520547,0.3608,60719.0,60715.0,0.082364]
[1727964520753,0.3608,60719.0,60718.0,0.08236]
[1727964521148,0.82192,60728.0,60723.0,0.082353]
[1727964521655,0.0024713,60735.0,60719.0,0.3608]
[1727964521961,0.80176001,60736.0,60720.0,0.082356]
[1727964522152,0.8008,60736.0,60719.0,0.3608]
[1727964522457,0.81515993,60736.0,60720.0,0.082356]
[1727964522649,0.8008,60736.0,60719.0,0.3608]
[1727964522850,0.44,60720.0,60719.0,0.004]
[1727964523348,0.522357,60720.0,60719.0,0.004]
[1727964523544,0.44,60720.0,60719.0,0.004]
[1727964523759,0.002,60728.0,60719.0,1.09808]
[1727964523946,0.002,60728.0,60727.0,0.082348]
[1727964524355,0.3608,60736.0,60727.0,1.094]
[1727964524549,0.3608,60736.0,60720.0,0.005]
[1727964524748,0.3608,60736.0,60724.0,0.44]
[1727964525154,0.0613,60747.0,60724.0,0.44]
[1727964525155,0.3608,60741.0,60735.0,0.082335]
[1727964525465,0.3608,60741.0,60737.0,0.082334]
[1727964525663,0.3608,60741.0,60730.0,0.3608]
[1727964525849,0.09658056,60747.0,60740.0,0.08233]
[1727964525850,0.082321,60747.0,60740.0,0.08233]
[1727964526049,0.082321,60747.0,60730.0,0.3608]
[1727964526353,0.3608,60748.0,60730.0,0.3608]
[1727964526660,0.3608,60748.0,60734.0,0.44]
[1727964527162,0.3608,60748.0,60730.0,0.3608]
[1727964527361,0.8008,60748.0,60730.0,0.3608]
[1727964527555,0.8008,60748.0,60735.0,0.082336]
[1727964527556,0.082322,60746.0,60735.0,0.082336]
[1727964527860,0.082322,60746.0,60730.0,0.3608]
[1727964527861,0.8008,60748.0,60730.0,0.3608]
[1727964528054,0.3608,60748.0,60734.0,0.44]
[1727964528254,0.00247048,60754.0,60739.0,0.8008]
[1727964528456,0.001,60747.0,60746.0,0.082321]
[1727964528955,0.001,60747.0,60746.0,0.576161]
[1727964529152,0.001,60747.0,60744.0,0.3608]
[1727964529350,0.441,60747.0,60740.0,0.082329]
[1727964529552,0.001,60747.0,60746.0,0.082322]
[1727964529753,0.001,60748.0,60739.0,0.082331]
[1727964529962,0.00247048,60754.0,60753.0,0.082312]
[1727964530561,0.00246933,60772.0,60755.0,0.082309]
[1727964530760,0.00246933,60772.0,60771.0,0.082288]
[1727964532262,0.00246933,60772.0,60771.0,1.175928]
[1727964532463,0.00346933,60772.0,60771.0,1.175928]
[1727964532875,0.001,60772.0,60771.0,0.082288]
[1727964533166,0.082286,60773.0,60766.0,0.082293]
[1727964533373,0.082284,60774.0,60768.0,0.082291]
[1727964533667,0.522278,60779.0,60760.0,0.082303]
[1727964533863,0.522278,60779.0,60771.0,0.082288]
[1727964534165,0.522278,60779.0,60772.0,0.082286]
[1727964534665,0.44,60779.0,60772.0,0.082286]
[1727964534868,0.8008,60785.0,60762.0,0.44]
[1727964535055,0.3608,60785.0,60779.0,0.082277]
[1727964535252,0.3608,60785.0,60764.0,0.082297]
[1727964535462,0.001,60779.0,60778.0,0.082278]
[1727964536274,0.8018,60785.0,60779.0,0.001]
[1727964536566,0.8028,60785.0,60779.0,0.001]
[1727964536866,0.8018,60785.0,60779.0,0.001]
[1727964537065,0.8018,60785.0,60751.0,0.5036]
[1727964537066,0.44,60780.0,60751.0,0.5036]
[1727964537270,0.3618,60785.0,60751.0,0.5036]
[1727964537271,0.44,60768.0,60751.0,0.0636]
[1727964537469,1.5,60784.0,60756.0,0.082307]
[1727964537760,1.94,60784.0,60775.0,0.082282]
[1727964537965,1.94,60784.0,60762.0,0.0823]
[1727964538169,0.44,60779.0,60762.0,0.0823]
[1727964538361,0.44,60779.0,60772.0,0.082286]
[1727964538564,0.001,60779.0,60778.0,0.001]
[1727964538753,0.001,60779.0,60778.0,0.083278]
[1727964539271,0.01391349,60783.0,60776.0,0.3608]
[1727964539561,0.01,60785.0,60776.0,0.3608]
[1727964539760,0.01,60785.0,60779.0,0.082277]
[1727964539968,0.001,60780.0,60779.0,0.082277]
[1727964540766,0.005,60783.0,60778.0,0.001]
[1727964541268,0.005,60783.0,60780.0,0.082276]
[1727964541459,0.005,60783.0,60781.0,0.082274]
[1727964541767,0.005,60783.0,60782.0,0.082273]
[1727964541966,0.005,60783.0,60782.0,0.575833]
[1727964542164,0.002,60785.0,60782.0,0.49356]
[1727964542364,0.002,60785.0,60773.0,0.44]
[1727964542365,0.8008,60784.0,60759.0,0.3608]
[1727964542664,0.082294,60767.0,60759.0,0.443103]
[1727964542855,0.082297,60765.0,60759.0,0.3608]
[1727964543061,0.44,60760.0,60756.0,0.00246898]
[1727964543260,0.3608,60757.0,60756.0,0.00246898]
[1727964543462,0.3608,60757.0,60741.0,0.08027285]
[1727964543463,0.082319,60748.0,60741.0,0.08027285]
[1727964543676,0.44,60745.0,60735.0,0.082337]
[1727964543965,0.082321,60747.0,60733.0,0.36327007]
[1727964544172,0.082321,60747.0,60740.0,0.082329]
[1727964544173,0.44,60747.0,60740.0,0.082329]
[1727964544362,0.44,60747.0,60733.0,0.36327007]
[1727964544560,0.44,60752.0,60740.0,0.08233]
[1727964544769,0.44,60747.0,60733.0,0.36327007]
[1727964544977,0.44,60736.0,60733.0,0.00247007]
[1727964545161,0.3608,60740.0,60733.0,0.00247007]
[1727964545471,0.3608,60740.0,60735.0,0.013]
[1727964545666,0.3518,60740.0,60735.0,0.013]
[1727964546171,0.44,60737.0,60735.0,0.013]
[1727964546486,0.36702591,60740.0,60733.0,0.01947007]
[1727964546668,0.3528,60740.0,60733.0,0.01947007]
[1727964547063,0.44,60737.0,60733.0,0.09280807]
[1727964547263,0.3518,60740.0,60733.0,0.09280807]
[1727964547458,0.3518,60740.0,60733.0,0.01047007]
[1727964547969,0.44,60737.0,60733.0,0.01047007]
[1727964548173,0.44,60737.0,60719.0,0.3608]
[1727964548471,0.44,60729.0,60719.0,0.3608]
[1727964548664,0.44,60729.0,60722.0,0.082354]
[1727964548871,0.3538,60740.0,60719.0,0.3608]
[1727964548872,0.00818222,60734.0,60719.0,0.3608]
[1727964549173,1.5,60733.0,60723.0,0.082352]
[1727964549370,0.3538,60740.0,60724.0,0.082351]
[1727964549371,0.44,60735.0,60724.0,0.082351]
[1727964549564,0.44,60735.0,60720.0,0.082357]
[1727964549762,0.003,60729.0,60726.0,0.082348]
[1727964550069,0.3518,60740.0,60734.0,0.082338]
[1727964550372,0.3518,60740.0,60722.0,0.082353]
[1727964550373,0.003,60735.0,60722.0,0.082353]
[1727964550560,0.003,60735.0,60733.0,0.082339]
[1727964551378,0.003,60735.0,60734.0,0.082338]
[1727964551565,0.007,60735.0,60734.0,0.082338]
[1727964551871,0.004,60735.0,60734.0,0.082338]
[1727964552069,0.004,60735.0,60734.0,1.176298]
[1727964552477,0.3518,60740.0,60739.0,0.082331]
[1727964553173,0.082315,60752.0,60745.0,0.082323]
[1727964553575,0.10184633,60749.0,60741.0,0.082327]
[1727964553775,0.00247038,60749.0,60735.0,0.3608]
[1727964554071,0.004,60740.0,60739.0,0.522331]
[1727964554276,0.00247038,60749.0,60748.0,0.082319]
[1727964554477,0.00247038,60749.0,60739.0,0.3608]
[1727964554678,0.00247038,60749.0,60748.0,0.082319]
[1727964555061,0.00247038,60749.0,60743.0,0.082325]
[1727964555275,0.00247038,60749.0,60739.0,0.3608]
[1727964555276,0.082327,60743.0,60739.0,0.3608]
[1727964555572,0.082328,60742.0,60739.0,0.3608]
[1727964555973,0.40192528,60746.0,60739.0,0.3608]
[1727964556281,0.082326,60743.0,60739.0,0.3608]
[1727964556662,0.082326,60743.0,60739.0,0.3618]
[1727964556872,0.31960328,60746.0,60739.0,0.3618]
[1727964557073,0.40192628,60746.0,60739.0,0.3618]
[1727964557467,0.31960328,60746.0,60739.0,0.3618]
[1727964557669,0.44,60741.0,60739.0,0.3618]
[1727964557879,0.082335,60736.0,60735.0,0.00246982]
[1727964558067,0.3608,60740.0,60735.0,0.00246982]
[1727964558267,0.50203,60740.0,60739.0,0.004]
[1727964558467,0.50203,60740.0,60735.0,0.00246982]
[1727964558468,0.522335,60736.0,60735.0,0.00246982]
[1727964558668,0.50299001,60740.0,60735.0,0.00246982]
[1727964558875,0.50299001,60740.0,60731.0,0.082341]
[1727964558876,0.50203,60740.0,60731.0,0.082341]
[1727964559077,0.44,60735.0,60728.0,0.3608]
[1727964559383,0.082349,60727.0,60719.0,0.082358]
[1727964559678,0.082349,60727.0,60717.0,0.3608]
[1727964559679,0.44,60723.0,60715.0,0.0024706]
[1727964559874,0.44,60723.0,60719.0,0.082357]
[1727964560371,0.38620616,60733.0,60715.0,0.0024706]
[1727964560372,0.44,60729.0,60715.0,0.0024706]
[1727964560677,0.37807586,60733.0,60715.0,0.0024706]
[1727964560881,0.37807586,60733.0,60721.0,0.3608]
[1727964560882,0.01727586,60733.0,60721.0,0.3608]
[1727964561081,0.3608,60739.0,60721.0,0.3608]
[1727964561381,0.44,60722.0,60715.0,0.0024706]
[1727964561577,0.007,60727.0,60715.0,0.0024706]
[1727964561779,0.007,60727.0,60716.0,0.082362]
[1727964561986,0.007,60727.0,60726.0,0.082349]
[1727964562165,0.082337,60736.0,60718.0,0.08236]
[1727964562370,0.02571797,60738.0,60721.0,0.003]
[1727964562571,0.80264,60739.0,60721.0,0.003]
[1727964562572,0.44,60733.0,60727.0,0.082347]
[1727964562780,0.44,60733.0,60721.0,0.003]
[1727964562781,0.44,60728.0,60721.0,0.003]
[1727964563073,0.004,60727.0,60723.0,0.082353]
[1727964563789,0.004,60727.0,60715.0,0.0024706]
[1727964564077,0.004,60727.0,60716.0,0.082362]
[1727964564376,0.004,60727.0,60715.0,0.0024706]
[1727964564580,0.08235,60726.0,60716.0,0.082362]
[1727964564780,0.08235,60726.0,60721.0,0.001]
[1727964564980,0.082345,60730.0,60721.0,0.083356]
[1727964565180,0.05974,60740.0,60727.0,0.3608]
[1727964565381,0.00084,60740.0,60739.0,0.082331]
[1727964565878,0.00084,60740.0,60736.0,0.443135]
[1727964566078,0.44,60737.0,60727.0,0.3608]
[1727964566388,0.082346,60728.0,60727.0,0.001]
[1727964566877,0.3608,60729.0,60727.0,0.001]
[1727964567280,0.3608,60729.0,60728.0,0.082346]
[1727964567578,0.3608,60729.0,60727.0,0.001]
[1727964567884,0.3608,60729.0,60718.0,0.082359]
[1727964567885,0.3608,60729.0,60726.0,0.082348]
[1727964569075,0.3608,60729.0,60717.0,0.3608]
[1727964569273,0.3698,60729.0,60718.0,0.082359]
[1727964569574,0.3698,60729.0,60725.0,0.08235]
[1727964569775,0.3688,60729.0,60721.0,0.082355]
[1727964570168,0.082348,60727.0,60717.0,0.3608]
[1727964570584,0.082352,60724.0,60720.0,0.082356]
[1727964570781,0.08235,60726.0,60717.0,0.3608]
[1727964571078,0.08235,60726.0,60722.0,0.082354]
[1727964571280,0.38359715,60729.0,60717.0,0.3608]
[1727964571494,0.082347,60728.0,60721.0,0.082355]
[1727964571668,0.37959715,60729.0,60720.0,0.002]
[1727964571869,0.001,60726.0,60720.0,0.002]
[1727964572173,0.001,60726.0,60722.0,0.082354]
[1727964572475,0.37859715,60729.0,60717.0,0.43057959]
[1727964572476,0.37959715,60729.0,60717.0,0.43057959]
[1727964572875,0.37959715,60729.0,60717.0,0.3658]
[1727964573076,0.082349,60726.0,60723.0,0.082353]
[1727964573273,0.082349,60726.0,60721.0,0.082355]
[1727964573470,0.37959715,60729.0,60717.0,0.43057959]
[1727964573780,0.37959715,60729.0,60728.0,0.082346]
[1727964573781,0.001,60729.0,60728.0,0.082346]
[1727964573974,0.01737526,60734.0,60728.0,0.3608]
[1727964574176,0.00084,60743.0,60729.0,0.06477959]
[1727964574376,0.09957242,60745.0,60742.0,0.082327]
[1727964574577,0.09957242,60745.0,60731.0,0.06477959]
[1727964574578,0.44,60744.0,60735.0,0.082337]
[1727964574982,0.44,60738.0,60728.0,0.42657959]
[1727964575281,0.082345,60729.0,60728.0,0.001]
[1727964575585,0.44,60732.0,60723.0,0.3608]
[1727964575586,0.082349,60726.0,60723.0,0.3608]
[1727964575885,0.00840573,60731.0,60718.0,0.06477959]
[1727964576071,0.082347,60728.0,60721.0,0.082355]
[1727964576389,0.082348,60727.0,60721.0,0.082355]
[1727964576573,0.44,60732.0,60715.0,0.42557959]
[1727964576779,0.082345,60729.0,60718.0,0.06477959]
[1727964577086,0.54778353,60732.0,60725.0,0.08235]
[1727964577389,0.45705569,60732.0,60717.0,0.06477959]
[1727964577583,0.45705569,60732.0,60718.0,0.06477959]
[1727964578076,0.08235,60726.0,60716.0,0.06477959]
[1727964578272,0.45705569,60732.0,60717.0,0.082361]
[1727964578587,0.01705569,60732.0,60720.0,0.082356]
[1727964578779,0.3608,60736.0,60730.0,0.082343]
[1727964578976,0.3608,60736.0,60718.0,0.001]
[1727964578977,0.082337,60735.0,60721.0,0.082355]
[1727964579172,0.082337,60735.0,60726.0,0.082348]
[1727964579478,0.082347,60728.0,60721.0,0.082355]
[1727964579680,0.082347,60728.0,60715.0,0.3608]
[1727964579681,0.082347,60728.0,60722.0,0.082354]
[1727964580081,0.082344,60730.0,60719.0,0.082357]
[1727964580275,0.44,60731.0,60720.0,0.082357]
[1727964580588,0.44,60731.0,60726.0,0.082348]
[1727964580983,0.003,60732.0,60730.0,0.082343]
[1727964581187,0.001,60732.0,60719.0,0.082358]
[1727964581390,0.001,60730.0,60727.0,0.082347]
[1727964581985,0.008,60731.0,60719.0,0.082358]
[1727964582185,0.008,60731.0,60730.0,0.001]
[1727964582388,0.01,60732.0,60730.0,0.001]
[1727964582578,0.01,60732.0,60731.0,0.082342]
[1727964582893,0.082342,60731.0,60730.0,0.001]
[1727964583674,0.29,60732.0,60713.0,0.082365]
[1727964583875,0.007,60730.0,60727.0,0.001]
[1727964584084,0.362346,60728.0,60727.0,0.001]
[1727964584474,0.362346,60728.0,60721.0,0.082355]
[1727964584993,0.082349,60726.0,60718.0,0.082359]
[1727964585186,0.28,60728.0,60716.0,0.082362]
[1727964585187,0.082351,60725.0,60716.0,0.082362]
[1727964585388,0.091346,60728.0,60727.0,0.001]
[1727964585695,0.371346,60728.0,60727.0,0.001]
[1727964585994,0.373346,60728.0,60727.0,0.001]
[1727964586378,0.371346,60728.0,60727.0,0.001]
[1727964586992,0.37844645,60736.0,60712.0,0.28]
[1727964586993,0.28,60735.0,60712.0,0.28]
[1727964587196,0.28,60730.0,60723.0,0.082352]
[1727964587588,0.362345,60730.0,60723.0,0.082352]
[1727964587782,0.091346,60728.0,60727.0,0.001]
[1727964588091,0.380346,60728.0,60727.0,0.001]
[1727964588590,0.298,60728.0,60727.0,0.001]
[1727964588888,0.009,60728.0,60727.0,0.083348]
[1727964589086,0.009,60730.0,60728.0,0.082346]
[1727964589278,0.009,60730.0,60719.0,0.082358]
[1727964589279,0.009,60730.0,60720.0,0.082357]
[1727964589484,0.009,60728.0,60727.0,0.082348]
[1727964590291,0.289,60728.0,60724.0,0.082351]
[1727964590592,0.289,60728.0,60719.0,0.082357]
[1727964590891,0.082356,60721.0,60715.0,0.3608]
[1727964591079,0.28,60723.0,60715.0,0.3608]
[1727964591393,0.362354,60723.0,60719.0,0.082358]
[1727964591592,0.28,60723.0,60715.0,0.3608]
[1727964592185,0.28,60723.0,60720.0,0.082356]
[1727964592390,0.28,60723.0,60715.0,0.3608]
[1727964592690,0.281,60723.0,60720.0,0.082357]
[1727964592994,0.281,60723.0,60715.0,0.3638]
[1727964593300,0.281,60723.0,60719.0,0.082357]
[1727964593684,0.281,60723.0,60715.0,0.3638]
[1727964593995,0.281,60723.0,60721.0,0.082355]
[1727964594195,0.281,60723.0,60715.0,0.3638]
[1727964594382,0.281,60723.0,60721.0,0.082355]
[1727964595091,0.283,60723.0,60715.0,0.3608]
[1727964595489,0.282,60723.0,60722.0,0.082354]
[1727964595991,0.283,60723.0,60722.0,0.082354]
[1727964596192,0.284,60723.0,60715.0,0.3608]
[1727964596585,0.004,60723.0,60722.0,0.082354]
[1727964596785,0.006,60723.0,60722.0,0.082354]
[1727964597684,0.286,60723.0,60715.0,0.3608]
[1727964598186,0.286,60723.0,60715.0,0.443164]
[1727964598387,0.285,60723.0,60722.0,0.082354]
[1727964598592,0.285,60723.0,60720.0,0.082357]
[1727964598783,0.285,60723.0,60721.0,0.082355]
[1727964599185,0.363354,60723.0,60721.0,0.082355]
[1727964599486,0.363354,60723.0,60721.0,0.082354]
[1727964599487,0.281,60723.0,60721.0,0.082354]
[1727964599689,0.281,60723.0,60722.0,0.082354]
[1727964599895,0.28,60723.0,60722.0,0.082354]
[1727964600194,0.002,60723.0,60722.0,0.082354]
[1727964600385,0.3608,60736.0,60722.0,1.37404]
[1727964600586,0.421825,60744.0,60731.0,0.082342]
[1727964600794,0.28,60744.0,60730.0,0.3608]
[1727964601098,0.28,60737.0,60733.0,0.082339]
[1727964601307,0.28,60737.0,60727.0,0.082347]
[1727964601487,0.01708636,60744.0,60734.0,0.3608]
[1727964601684,0.00084,60753.0,60743.0,0.723126]
[1727964601890,0.3608,60770.0,60743.0,0.723126]
[1727964601891,0.3608,60775.0,60768.0,0.082291]
[1727964602096,0.28,60777.0,60767.0,0.3608]
[1727964602384,0.0629,60782.0,60776.0,0.08228]
[1727964602385,0.00096001,60778.0,60776.0,0.08228]
[1727964602795,0.28,60782.0,60776.0,0.08228]
[1727964603095,0.01694737,60782.0,60779.0,0.3608]
[1727964603303,0.28,60792.0,60785.0,0.082269]
[1727964603596,0.46148,60796.0,60781.0,0.28]
[1727964603797,0.01775877,60796.0,60794.0,0.082257]
[1727964604103,0.28,60806.0,60792.0,0.3608]
[1727964604398,0.28,60806.0,60786.0,0.3608]
[1727964604399,0.28,60797.0,60786.0,0.3608]
[1727964604594,0.28,60797.0,60776.0,0.001]
[1727964604595,0.28,60787.0,60776.0,0.001]
[1727964604795,0.28,60780.0,60776.0,0.001]
[1727964605291,0.28,60780.0,60765.0,0.3608]
[1727964605485,0.28,60767.0,60765.0,0.3608]
[1727964606095,0.28,60772.0,60765.0,0.3608]
[1727964606399,0.01722536,60775.0,60765.0,0.3608]
[1727964606588,0.28,60777.0,60770.0,0.082289]
[1727964606988,0.014,60778.0,60765.0,0.443096]
[1727964606989,0.28,60773.0,60765.0,0.443096]
[1727964607190,0.02376696,60780.0,60765.0,0.3608]
[1727964607191,0.28,60768.0,60765.0,0.3608]
[1727964607493,0.082295,60766.0,60754.0,0.443111]
[1727964607692,0.28,60755.0,60754.0,0.3608]
[1727964607895,0.082315,60751.0,60743.0,0.3608]
[1727964608095,0.64909989,60755.0,60743.0,0.3608]
[1727964608096,0.28,60750.0,60743.0,0.3608]
[1727964608295,0.28,60750.0,60746.0,0.082321]
[1727964608596,0.28,60750.0,60743.0,0.3608]
[1727964609002,0.28,60745.0,60738.0,0.3608]
[1727964609191,0.01721495,60750.0,60730.0,0.36327001]
[1727964609192,0.082336,60736.0,60730.0,0.00247001]
[1727964609394,0.28,60731.0,60730.0,0.00247001]
[1727964610287,0.774,60731.0,60725.0,0.3608]
[1727964610498,0.77204,60726.0,60715.0,0.06477959]
[1727964610696,0.28,60719.0,60715.0,0.06477959]
[1727964610896,0.082361,60717.0,60715.0,0.06477959]
[1727964611094,0.3608,60727.0,60715.0,0.06477959]
[1727964611306,0.082355,60722.0,60715.0,0.06477959]
[1727964611603,0.44,60721.0,60715.0,0.06477959]
[1727964611807,0.44,60721.0,60716.0,0.08727285]
[1727964612103,0.082361,60717.0,60716.0,0.08727285]
[1727964612601,0.082361,60717.0,60703.0,0.3608]
[1727964612602,0.49412,60716.0,60703.0,0.3608]
[1727964612808,0.08238,60703.0,60702.0,0.00247113]
[1727964612996,0.44,60704.0,60702.0,0.00247113]
[1727964613196,0.44,60709.0,60702.0,0.00247113]
[1727964613690,1.94084,60715.0,60705.0,0.082377]
[1727964613891,1.5,60715.0,60702.0,0.00247113]
[1727964614099,0.001,60716.0,60702.0,0.00247113]
[1727964614297,0.001,60716.0,60715.0,0.522364]
[1727964614503,0.3608,60735.0,60715.0,0.44]
[1727964614704,0.3608,60735.0,60725.0,0.44]
[1727964615006,0.082325,60744.0,60723.0,0.3608]
[1727964615007,0.3608,60745.0,60730.0,0.44]
[1727964615307,0.3608,60757.0,60741.0,0.44]
[1727964615502,0.01980926,60754.0,60746.0,0.082321]
[1727964615695,0.00247031,60754.0,60741.0,0.44]
[1727964615896,0.00247031,60754.0,60752.0,0.082313]
[1727964616403,0.01743106,60766.0,60754.0,0.08231]
[1727964616598,0.01743106,60766.0,60749.0,0.3608]
[1727964616599,0.082292,60768.0,60755.0,0.082309]
[1727964617202,0.44,60769.0,60760.0,0.082302]
[1727964617508,0.014,60754.0,60752.0,0.082314]
[1727964617706,0.082285,60773.0,60759.0,0.082304]
[1727964618013,0.082285,60773.0,60753.0,0.4938]
[1727964618014,0.082285,60773.0,60751.0,0.44]
[1727964618304,0.56092171,60772.0,60760.0,0.082303]
[1727964618505,0.449,60769.0,60760.0,0.001]
[1727964618711,0.44,60764.0,60760.0,0.001]
[1727964619198,0.44,60764.0,60755.0,0.08231]
[1727964619199,0.44,60764.0,60757.0,0.082306]